fUST/lending_fUST_20241013
["ID","MTS","AMOUNT","RATE_DAILY","PERIOD"]
[340179491,1728777042520,-153.0,0.00042328,120]
[340179492,1728777042529,-153.0,0.00042328,120]
[340179493,1728777042538,-153.0,0.00042328,120]
[340179494,1728777042547,-153.0,0.00042328,120]
[340179495,1728777042556,-9364.96,0.000424,30]
[340179496,1728777042566,-1874.76,0.00042465,2]
[340179497,1728777042576,-750.0,0.0004266,7]
[340179498,1728777042586,-1874.76,0.00042739,2]
[340179499,1728777042595,-499.92525052,0.0004274,30]
[340179500,1728777042615,-152.617656,0.00042921,30]
[340179501,1728777042626,-151.0,0.00042921,2]
[340179502,1728777042636,-152.833089,0.00042921,120]
[340179503,1728777042646,-263.018657,0.00042921,120]
[340179504,1728777042657,-151.0,0.00042921,120]
[340179505,1728777042670,-263.018657,0.00042921,120]
[340179506,1728777042680,-576.906059,0.00042921,2]
[340179507,1728777042690,-576.906059,0.00042921,2]
[340179508,1728777042699,-239.468471,0.00042921,120]
[340179509,1728777042709,-239.468471,0.00042921,120]
[340179510,1728777042720,-1874.76,0.00043013,2]
[340179511,1728777042730,-150.0,0.00043096,2]
[340179512,1728777042740,-571.804,0.00043096,2]
[340179513,1728777042751,-1157.0,0.00043096,2]
[340179514,1728777042761,-198.0,0.00043096,2]
[340179515,1728777042770,-640.906,0.00043096,2]
[340179516,1728777042780,-171.803,0.00043096,2]
[340179517,1728777042790,-7085.724,0.00043096,2]
[340179518,1728777042800,-150.374,0.00043096,2]
[340179519,1728777042809,-850.0,0.00043208,7]
[340179520,1728777042819,-1874.76,0.00043287,2]
[340179521,1728777042828,-2000.0,0.00043387,10]
[340179522,1728777042838,-219.2241618,0.00043387,10]
[340179523,1728777042847,-338.65340092,0.00043387,10]
[340179524,1728777042857,-2000.0,0.00043387,10]
[340179525,1728777042866,-2000.0,0.00043387,10]
[340179526,1728777042876,-2000.0,0.00043387,7]
[340179527,1728777042886,-2000.0,0.00043387,7]
[340179528,1728777042896,-1874.76,0.00043561,2]
[340179529,1728777042905,-3415.81424598,0.00043589,2]
[340179530,1728777042915,-950.0,0.00043756,7]
[340179531,1728777042925,-156.0,0.0004379,2]
[340179532,1728777042935,-150.112233,0.000438,8]
[340179533,1728777042946,-1874.76,0.00043835,2]
[340179534,1728777042956,-150.112233,0.00044,5]
[340179535,1728777042966,-9364.96,0.00044,30]
[340179536,1728777042977,-150.112233,0.000441,9]
[340179537,1728777042986,-1874.76,0.00044109,2]
[340179538,1728777042996,-1050.0,0.00044304,7]
[340179539,1728777043006,-1874.76,0.00044383,2]
[340179540,1728777043016,-150.112233,0.000446,7]
[340179541,1728777043027,-1874.83709,0.00044657,2]
[340179542,1728777043037,-150.112233,0.000447,9]
[340179544,1728777043049,-246.90465527,0.00044712,14]
[340179545,1728777043059,-165.054187,0.00044785,2]
[340179546,1728777043068,-1150.0,0.00044852,7]
[340179547,1728777043078,-2130.33636173,0.00045,120]
[340179548,1728777043087,-1536.0,0.00045047,5]
[340179549,1728777043098,-343.144509,0.00045105,120]
[340179550,1728777043108,-258.0,0.00045163,30]
[340179551,1728777043117,-150.112233,0.000452,13]
[340179552,1728777043127,-150.112233,0.000453,11]
[340179553,1728777043137,-1250.0,0.000454,7]
[340179554,1728777043146,-500.0,0.00045496,17]
[340179555,1728777043156,-500.0,0.00045496,17]
[340179556,1728777043165,-150.0,0.00045574,120]
[340179557,1728777043175,-150.112233,0.000458,16]
[340179558,1728777043186,-150.112233,0.000459,11]
[340179559,1728777043196,-1019.38177333,0.00045948,7]
[340179560,1728777043205,-2008.52504937,0.00045978,10]
[340179562,1728777043214,-418.5066737,0.00045978,10]
[340179564,1728777043225,-2500.0,0.00045978,10]
[340179566,1728777043234,-1507.70158219,0.00045978,7]
[340179568,1728777043244,-1540.31410474,0.00045978,7]
[340179569,1728777043253,-150.0,0.00046096,2]
[340179571,1728777043265,-526.0,0.00046096,2]
[340179572,1728777043274,-1157.0,0.00046096,2]
[340179573,1728777043283,-150.0,0.00046096,2]
[340179574,1728777043370,-632.0,0.00046096,2]
[340179575,1728777043388,-150.0,0.00046096,2]
[340179576,1728777043399,-10148.53622555,0.00046247,28]
[340179577,1728777043410,-3415.81424598,0.00046378,2]
[340179578,1728777043421,-1021.02,0.000464,30]
[340179579,1728777043430,-150.112233,0.000464,10]
[340179580,1728777043439,-150.112233,0.000465,12]
[340179581,1728777043450,-149609.82423901,0.00046609,2]
[340179582,1728777043459,-163.648406,0.00046609,2]
[340179583,1728777043468,-263.018657,0.00046609,120]
[340179584,1728777043479,-263.018657,0.00046609,120]
[340179585,1728777043488,-576.906059,0.00046609,2]
[340179586,1728777043497,-576.906059,0.00046609,2]
[340179587,1728777043506,-239.468471,0.00046609,120]
[340179588,1728777043516,-239.468471,0.00046609,120]
[340179589,1728777043526,-2256.11349,0.00046609,120]
[340179590,1728777043535,-151.0,0.00046609,120]
[340179591,1728777043544,-2256.11349,0.00046609,120]
[340179592,1728777043553,-192.03691,0.00046609,120]
[340179593,1728777043563,-151.0,0.00046609,120]
[340179594,1728777043573,-151.0,0.00046609,120]
[340179595,1728777043582,-291.45323,0.00046609,120]
[340179596,1728777043593,-151.0,0.00046609,120]
[340179597,1728777043603,-151.0,0.00046609,120]
[340179598,1728777043612,-151.0,0.00046609,120]
[340179599,1728777043624,-151.0,0.00046609,120]
[340179600,1728777043635,-10.57480093,0.00046609,120]
[340179601,1728777043808,-116.24804114,0.00046599,10]
[340179635,1728777763446,10000.0,0.00024,2]
[340179636,1728777930152,-157.0,0.0003284,2]
[340179637,1728777930174,-401.34506353,0.00032877,2]
[340179638,1728777930194,-1111.0,0.00034849,120]
[340179639,1728777930215,-302.45563732,0.00035,2]
[340179640,1728777930235,-778.05383106,0.00035176,2]
[340179641,1728777934040,140024.0,0.00024,2]
[340179642,1728777942101,-1153.41030784,0.00035176,2]
[340179643,1728777942123,-325.37943307,0.0003525,2]
[340179644,1728777942142,-302.45563732,0.0003535,2]
[340179645,1728777942162,-302.45563732,0.000357,2]
[340179646,1728777942182,-302.45563732,0.0003605,2]
[340179647,1728777942201,-400.0,0.00036399,2]
[340179648,1728777942221,-400.0,0.00036399,2]
[340179649,1728777942240,-199.36760537,0.00036399,2]
[340179650,1728777942261,-302.45563732,0.000364,2]
[340179651,1728777942280,-453.68345598,0.0003675,4]
[340179652,1728777942300,-313.48053394,0.00036822,2]
[340179653,1728777942319,-325.37943307,0.00036973,2]
[340179654,1728777942339,-453.68345598,0.000371,4]
[340179655,1728777942359,-166.666666,0.00037138,2]
[340179656,1728777942473,-453.68345598,0.0003745,4]
[340179657,1728777942494,-2157.889126,0.00037494,2]
[340179658,1728777942515,-168.659434,0.00037506,2]
[340179659,1728777942537,-453.68345598,0.000378,4]
[340179660,1728777942558,-453.68345598,0.0003815,4]
[340179661,1728777942582,-2157.889126,0.00038179,2]
[340179662,1728777942605,-3000.0,0.00038202,2]
[340179663,1728777942626,-325.37943307,0.00038695,2]
[340179664,1728777942647,-638.82672076,0.00038795,7]
[340179665,1728777942668,-2157.889126,0.00038863,2]
[340179666,1728777942688,-560.0,0.00038971,5]
[340179667,1728777942708,-396.5333948,0.00039475,2]
[340179668,1728777942731,-282.13544714,0.0003959,14]
[340179669,1728777942753,-218.0,0.0003959,2]
[340179670,1728777942777,-1060.10125726,0.0003959,2]
[340179679,1728778026139,-855.9815823,0.0003476,2]
[340179680,1728778026163,-200.0,0.00035043,30]
[340179681,1728778026185,-630.1006055,0.00035043,2]
[340179682,1728778026209,-338.07084537,0.00039589,30]
[340179684,1728778040122,-250.0,0.00035792,2]
[340179685,1728778040145,-48.76095043,0.0003589,2]
[340179686,1728778052146,-201.23904957,0.0003589,2]
[340179687,1728778052173,-250.0,0.00035988,2]
[340179688,1728778052195,-177.76868426,0.00036087,2]
[340179704,1728778145132,-250.0,0.00032234,2]
[340179705,1728778152105,-714.715642,0.00035632,2]
[340179706,1728778152130,-169.4589276,0.0003588,2]
[340179707,1728778152155,-72.23131574,0.00036087,2]
[340179708,1728778152176,-250.0,0.00036185,2]
[340179709,1728778152198,-250.0,0.00036283,2]
[340179710,1728778152219,-250.0,0.00036381,2]
[340179711,1728778152240,-250.0,0.00036479,2]
[340179712,1728778152261,-250.0,0.00036577,2]
[340179713,1728778152282,-250.0,0.00036676,2]
[340179714,1728778152303,-250.0,0.00036774,2]
[340179715,1728778152324,-250.0,0.00036872,2]
[340179716,1728778152346,-250.0,0.0003697,2]
[340179717,1728778152369,-217.51429537,0.00037068,2]
[340179718,1728778158133,-32.48570463,0.00037068,2]
[340179719,1728778158155,-250.0,0.00037166,2]
[340179720,1728778158183,-250.0,0.00037265,2]
[340179721,1728778158205,-250.0,0.00037363,2]
[340179722,1728778158240,-250.0,0.00037461,2]
[340179723,1728778158266,-400.0,0.00037461,2]
[340179724,1728778158289,-400.0,0.00037461,2]
[340179725,1728778158311,-250.0,0.00037559,2]
[340179726,1728778158335,-250.0,0.00037657,2]
[340179727,1728778158357,-604.85090425,0.00039391,6]
[340179728,1728778158381,-23839.89874274,0.0003959,2]
[340179729,1728778158403,-373.45684801,0.00039785,6]
[340179730,1728778158425,-500.0,0.00039933,5]
[340179731,1728778158446,-351.635415,0.0004,2]
[340179732,1728778158468,-892.30577239,0.00040041,2]
[340179733,1728778158490,-560.0,0.00040064,5]
[340179734,1728778158511,-187.43227678,0.00040128,31]
[340179735,1728778158535,-500.0,0.00040128,31]
[340179736,1728778158559,-361.50178593,0.00040128,31]
[340179737,1728778158580,-500.0,0.00040128,31]
[340179738,1728778158604,-639.19218527,0.00040128,31]
[340179739,1728778158630,-500.0,0.00040128,31]
[340179740,1728778158653,-500.0,0.00040128,31]
[340179741,1728778158676,-500.0,0.00040128,31]
[340179742,1728778158700,-201.4661619,0.00040128,31]
[340179743,1728778168120,-298.5338381,0.00040128,31]
[340179744,1728778168145,-500.0,0.00040128,31]
[340179745,1728778168169,-500.0,0.00040128,31]
[340179746,1728778168193,-500.0,0.00040128,31]
[340179747,1728778168215,-277.77073711,0.00040128,31]
[340179748,1728778168240,-500.0,0.00040128,31]
[340179749,1728778168265,-500.0,0.00040128,31]
[340179750,1728778168288,-500.0,0.00040128,31]
[340179751,1728778168310,-500.0,0.00040128,31]
[340179752,1728778168334,-500.0,0.00040128,31]
[340179753,1728778168359,-500.0,0.00040128,31]
[340179754,1728778168380,-500.0,0.00040128,31]
[340179755,1728778168401,-591.88430534,0.00040128,31]
[340179756,1728778168420,-500.0,0.00040128,31]
[340179757,1728778168441,-500.0,0.00040128,31]
[340179758,1728778168461,-500.0,0.00040128,31]
[340179759,1728778168482,-500.0,0.00040225,5]
[340179760,1728778168601,-265.978,0.00040739,59]
[340179761,1728778168622,-1111.0,0.00040767,21]
[340179762,1728778168642,-150.0,0.000409,45]
[340179763,1728778168663,-560.0,0.00041207,30]
[340179764,1728778168683,-231.6911127,0.00041492,2]
[340179765,1728778168703,-2400.0,0.000425,40]
[340179766,1728778168723,-1077.555702,0.0004274,30]
[340179767,1728778168742,-783.0,0.00042848,5]
[340179768,1728778168763,-592.7214198,0.00042996,2]
[340179769,1728778168782,-250.0,0.00043096,2]
[340179770,1728778168802,-150.0,0.00043656,2]
[340179771,1728778168823,-526.0,0.00043656,2]
[340179772,1728778168842,-1157.0,0.00043656,2]
[340179773,1728778168861,-632.0,0.00043656,2]
[340179774,1728778168882,-405.84321494,0.00044712,14]
[340179775,1728778168902,-351.635415,0.00045105,120]
[340179776,1728778168923,-314.0,0.00045328,30]
[340179777,1728778168943,-1097.0,0.00045825,5]
[340179778,1728778168962,-150.0,0.00046096,2]
[340179779,1728778168982,-151.0,0.00046609,120]
[340179780,1728778169002,-150.0,0.00046656,2]
[340179781,1728778169022,-526.0,0.00046656,2]
[340179782,1728778169043,-1157.0,0.00046656,2]
[340179783,1728778169067,-632.0,0.00046656,2]
[340179784,1728778169088,-1111.0,0.00046685,90]
[340179785,1728778169110,-1189.32,0.00046698,10]
[340179786,1728778169131,-500.0,0.00046707,120]
[340179787,1728778169152,-491.23253845,0.00046707,120]
[340179788,1728778169172,-283.64932307,0.00046707,31]
[340179789,1728778169191,-273.54151829,0.00046707,120]
[340179790,1728778169211,-500.84630048,0.00046707,120]
[340179791,1728778169232,-636.89078091,0.00046707,120]
[340179792,1728778169255,-4731.44889564,0.00046708,6]
[340179793,1728778179103,318.2,0.00024,2]
[340179821,1728778239144,-69.8897482,0.0004065,5]
[340179826,1728778240681,-432.57430692,0.0004065,5]
[340179827,1728778240693,-4231.43660392,0.00040995,7]
[340179828,1728778240706,-10768.56339608,0.00040995,7]
[340179829,1728778240716,-550.0,0.00041,5]
[340179830,1728778240726,-5450.39183179,0.00042996,28]
[340179832,1728778240737,-770.0,0.00043688,5]
[340179833,1728778240746,-5450.39183177,0.00046125,28]
[340179835,1728778240755,-1077.0,0.00046552,5]
[340179837,1728778240765,-316.82325589,0.00046608,2]
[340179838,1728778240774,-316.82325589,0.00046613,2]
[340179839,1728778240784,-316.82325589,0.00046617,2]
[340179840,1728778240793,-344.08,0.00046698,30]
[340179841,1728778240803,-286.73,0.00046698,30]
[340179842,1728778240813,-238.95,0.00046698,30]
[340179843,1728778240822,-199.12,0.00046698,30]
[340179844,1728778240831,-1312.47,0.00046698,10]
[340179845,1728778240842,-165.93,0.00046698,30]
[340179846,1728778240852,-2049.2,0.00046698,10]
[340179847,1728778240861,-829.7,0.00046698,30]
[340179848,1728778240871,-1707.67,0.00046698,10]
[340179849,1728778240881,-1423.06,0.00046698,10]
[340179850,1728778240890,-188.0902981,0.00046698,60]
[340179851,1728778240900,-475.30785968,0.00046707,120]
[340179852,1728778240909,-565.76492282,0.00046707,120]
[340179853,1728778240919,-180.79,0.00046707,7]
[340179854,1728778240929,-55458.37344346,0.00046708,6]
[340179855,1728778240940,-136636.25095624,0.00046708,6]
[340179859,1728778244523,-3373.43334441,0.00037525,2]
[340179860,1728778244538,-14220.95156658,0.00037525,2]
[340179888,1728778246875,-224.90589257,0.00037525,2]
[340179893,1728779139148,-159.60545319,0.0003,2]
[340179894,1728779249103,-363.69967565,0.0003,2]
[340179895,1728779253101,-463.86360544,0.0003,2]
[340179896,1728779253124,-178.45745322,0.00032482,2]
[340179899,1728779308514,945.10674341,0.000176,2]
[340179900,1728779317924,48211.36816938,0.00022,30]
[340179901,1728779345151,-2325.24,0.0002508,10]
[340179902,1728779345173,-1937.7,0.0002508,10]
[340179903,1728779345197,-300.0,0.00025089,2]
[340179904,1728779345220,-75737.3548328,0.0002509,2]
[340179911,1728779348129,-344.08,0.0002508,3]
[340179912,1728779348152,-1614.75,0.0002508,10]
[340179913,1728779348175,-17056.64214,0.0002509,2]
[340179914,1728779353024,10000.0,0.00023,30]
[340179915,1728779354102,-2414.955298,0.0002509,2]
[340179916,1728779355153,-156007.86529254,0.0002509,2]
[340179917,1728779355176,-688.16,0.0002645,3]
[340179918,1728779355200,-420.0,0.00027598,2]
[340179919,1728779355221,-5423.77975558,0.00028887,2]
[340179920,1728779355243,-587.0,0.00030358,2]
[340179921,1728779355264,-190.52288227,0.00032382,2]
[340179922,1728779355285,-178.90036778,0.00032482,2]
[340179923,1728779355307,-1271.2116122,0.00032539,2]
[340179924,1728779355342,-24900.0,0.00032611,2]
[340179925,1728779355367,-250.0,0.00032711,2]
[340179926,1728779355390,-250.0,0.000328,2]
[340179927,1728779355412,-277.00195445,0.00032877,2]
[340179928,1728779355438,-250.0,0.0003289,2]
[340179929,1728779355462,-250.0,0.0003298,2]
[340179930,1728779355485,-16682.2140253,0.00033,2]
[340179931,1728779355509,-11824.86429831,0.00033,2]
[340179932,1728779356152,-18191.98060475,0.00033,2]
[340179933,1728779356173,-3000.0,0.00033053,2]
[340179934,1728779356194,-250.0,0.00033069,2]
[340179935,1728779356215,-250.0,0.00033159,2]
[340179936,1728779356235,-603.9636918,0.00033188,2]
[340179937,1728779356257,-250.0,0.00033249,2]
[340179938,1728779356384,-250.0,0.00033339,2]
[340179939,1728779356408,-250.0,0.00033428,2]
[340179940,1728779356431,-250.0,0.00033518,2]
[340179941,1728779365126,-250.0,0.00033608,2]
[340179942,1728779365147,-156.0,0.0003362,2]
[340179943,1728779365168,-250.0,0.00033697,2]
[340179944,1728779365189,-500.0,0.00033783,5]
[340179945,1728779365210,-250.0,0.00033787,2]
[340179946,1728779365230,-250.0,0.00033877,2]
[340179947,1728779365251,-250.0,0.00033966,2]
[340179948,1728779365274,-250.0,0.00034056,2]
[340179949,1728779365296,-250.0,0.00034146,2]
[340179950,1728779365319,-250.0,0.00034236,2]
[340179951,1728779365342,-250.0,0.00034325,2]
[340179952,1728779365366,-250.0,0.00034415,2]
[340179953,1728779365388,-1111.0,0.00034849,120]
[340179954,1728779365411,-10448.38312635,0.00035,2]
[340179955,1728779365436,-337.51623956,0.00035153,5]
[340179956,1728779365459,-1848.0259614,0.00035988,2]
[340179957,1728779365483,-2630.97144416,0.00036,30]
[340179958,1728779365507,-11775.93892398,0.00036,15]
[340179959,1728779368532,8116.79368143,0.00023,30]
[340179960,1728779368555,1883.20631857,0.00023,30]
[340179964,1728779380427,10000.0,0.00023,30]
[340180009,1728779439876,-258.17697528,0.00033783,5]
[340180010,1728779439932,-241.82302472,0.00033783,5]
[340180011,1728779439943,-500.0,0.00033783,5]
[340180012,1728779439955,-500.0,0.00033783,5]
[340180013,1728779439967,-382.21046586,0.00033783,5]
[340180014,1728779439979,-400.0,0.00035152,2]
[340180015,1728779439990,-1000.0,0.00035153,5]
[340180016,1728779440003,-1000.0,0.00035153,5]
[340180017,1728779440013,-1000.0,0.00035153,5]
[340180018,1728779440024,-5078.35058734,0.00036,15]
[340180019,1728779440035,-204.39924054,0.00036822,2]
[340180020,1728779440046,-338.65340092,0.00037156,5]
[340180021,1728779440058,-1500.0,0.00037156,5]
[340180022,1728779440068,-1500.0,0.00037156,5]
[340180023,1728779440077,-560.0,0.00037685,2]
[340180024,1728779440087,-296.43201247,0.00038795,7]
[340180025,1728779440097,-500.0,0.00038999,15]
[340180026,1728779440106,-475.30785968,0.00038999,15]
[340180027,1728779440118,-500.0,0.00038999,15]
[340180028,1728779440129,-500.0,0.00038999,15]
[340180029,1728779440140,-500.0,0.00038999,15]
[340180030,1728779440150,-500.0,0.00038999,15]
[340180031,1728779440161,-500.0,0.00038999,15]
[340180032,1728779440174,-500.0,0.00038999,15]
[340180033,1728779440185,-500.0,0.00038999,15]
[340180034,1728779440196,-404.94725959,0.00038999,15]
[340180035,1728779440208,-500.0,0.00038999,15]
[340180036,1728779440220,-26074.19384079,0.00039,2]
[340180037,1728779440304,-188.0902981,0.00039,14]
[340180038,1728779440316,-244.231,0.00039375,54]
[340180039,1728779440326,-2000.0,0.00039497,5]
[340180040,1728779440338,-918.5066737,0.00039497,5]
[340180041,1728779440348,-174.276971,0.00039605,2]
[340180042,1728779440357,-211.67888989,0.000398,2]
[340180043,1728779440368,-211.67888988,0.000398,2]
[340180044,1728779440380,-360.301733,0.0004,2]
[340180045,1728779440390,-9386.1453699,0.0004,10]
[340180046,1728779440401,-161.60378812,0.00040347,30]
[340180047,1728779440411,-783.0,0.000404,5]
[340180048,1728779440422,-456.04710185,0.00040767,21]
[340180049,1728779440433,-3000.0,0.000409,45]
[340180050,1728779440444,-4476.741292,0.0004091,45]
[340180051,1728779440454,-150.0,0.00040973,5]
[340180052,1728779440465,-150.0,0.00040973,5]
[340180053,1728779440477,-1985.9,0.00040976,10]
[340180054,1728779440487,-1654.92,0.00040976,10]
[340180055,1728779440498,-1379.1,0.00040976,10]
[340180056,1728779440509,-500.0,0.00040985,31]
[340180057,1728779440519,-191.47906281,0.00040985,31]
[340180058,1728779440531,-445.82354664,0.00040985,31]
[340180059,1728779440543,-343.86277691,0.00040985,31]
[340180060,1728779440552,-198.55452615,0.00040985,31]
[340180061,1728779440564,-200.59241034,0.00040985,31]
[340180062,1728779440575,-180.79,0.00040985,2]
[340180063,1728779440587,-151.0,0.00040986,14]
[340180064,1728779440598,-151.0,0.00040986,14]
[340180065,1728779440610,-151.0,0.00040986,14]
[340180066,1728779440621,-259.382784,0.00040986,14]
[340180067,1728779440631,-151.0,0.00040986,14]
[340180068,1728779440642,-151.0,0.00040986,14]
[340180069,1728779440652,-43150.58594098,0.00040986,26]
[340180070,1728779440663,-24540.81467485,0.00040986,61]
[340180071,1728779440674,-37983.00038759,0.00040986,2]
[340180072,1728779440685,-163.54262327,0.00040986,2]
[340180073,1728779440697,-4127.56548919,0.00040986,2]
[340180074,1728779440708,-10768.56339608,0.00040986,7]
[340180075,1728779440717,-5095.19727532,0.00040986,120]
[340180076,1728779440730,-10114.10799158,0.00040986,2]
[340180077,1728779440741,-9847.05766869,0.00040986,2]
[340180078,1728779440752,-1168.12288359,0.00040986,2]
[340180079,1728779440762,-154.54518119,0.00040986,2]
[340180080,1728779440772,-173.80642027,0.00040986,2]
[340180081,1728779440782,-192497.64673917,0.00040986,5]
[340180082,1728779440791,-15332.63501493,0.00040986,2]
[340180083,1728779440801,-1519.4078853,0.00040986,2]
[340180084,1728779440810,-20849.2726438,0.00040986,2]
[340180085,1728779440819,-437.80486553,0.00040986,2]
[340180086,1728779440829,-223.63120349,0.00040986,2]
[340180087,1728779440840,-1020.07136658,0.00040986,2]
[340180088,1728779440850,-122087.23174445,0.00040986,2]
[340180089,1728779440859,-12845.81160343,0.00040986,10]
[340180090,1728779440868,-5498.71572989,0.00040986,5]
[340180091,1728779440878,-209081.37497295,0.00040986,20]
[340180093,1728779443073,-91992.86540703,0.00040986,20]
[340180100,1728779446648,-71.36900652,0.00040986,20]
[340180101,1728779716964,11154.56390456,0.00019555,2]
[340180110,1728780356130,-300.0,0.00028999,2]
[340180111,1728780356155,-300.0,0.00028999,2]
[340180112,1728780356179,-500.0,0.00029,2]
[340180113,1728780356210,-290.31132351,0.00029,2]
[340180114,1728780357218,-209.68867649,0.00029,2]
[340180115,1728780357245,-383.24052557,0.00029,2]
[340180118,1728780403091,-300.0,0.00028999,2]
[340180119,1728780403113,-300.0,0.00028999,2]
[340180120,1728780403134,-116.75947443,0.00029,2]
[340180121,1728780403157,-114.25810829,0.00029,2]
[340180123,1728780433106,-385.74189171,0.00029,2]
[340180124,1728780433128,-523.15975143,0.00029,2]
[340180125,1728780433150,-943.7041535,0.00029,2]
[340180126,1728780433173,-68.49311913,0.00029999,2]
[340180127,1728780434175,-231.50688087,0.00029999,2]
[340180128,1728780434197,-300.0,0.00029999,2]
[340180129,1728780434220,-503.71073537,0.0003,30]
[340180130,1728780434241,-500.0,0.0003,30]
[340180131,1728780434262,-500.0,0.0003,30]
[340180132,1728780434282,-500.0,0.0003,30]
[340180133,1728780434302,-500.0,0.0003,30]
[340180134,1728780434322,-500.0,0.0003,30]
[340180135,1728780434343,-407.54245034,0.0003,30]
[340180136,1728780438105,-500.0,0.00029,2]
[340180137,1728780438126,-92.45754966,0.0003,30]
[340180138,1728780438147,-500.0,0.0003,30]
[340180139,1728780438172,-500.0,0.0003,30]
[340180140,1728780438193,-500.0,0.0003,30]
[340180141,1728780438214,-500.0,0.0003,30]
[340180142,1728780438236,-173.294752,0.00030443,2]
[340180143,1728780438257,-174.276971,0.0003078,2]
[340180144,1728780438278,-526.8524093,0.0003094,2]
[340180145,1728780438300,-298.0343927,0.00030953,2]
[340180147,1728780442098,-272.1336783,0.00030953,2]
[340180148,1728780442120,-24900.0,0.00031006,2]
[340180149,1728780442140,-3000.0,0.00031011,2]
[340180150,1728780442161,-250.0,0.00031175,2]
[340180151,1728780442185,-250.0,0.0003126,2]
[340180152,1728780442207,-250.0,0.00031346,2]
[340180153,1728780442228,-250.0,0.00031431,2]
[340180154,1728780442249,-250.0,0.00031517,2]
[340180155,1728780442270,-250.0,0.00031602,2]
[340180156,1728780442291,-250.0,0.00031688,2]
[340180157,1728780442312,-250.0,0.00031773,2]
[340180158,1728780442333,-250.0,0.00031859,2]
[340180159,1728780442354,-250.0,0.00031944,2]
[340180160,1728780442374,-267.0,0.0003203,2]
[340180161,1728780442482,-250.0,0.0003203,2]
[340180162,1728780442503,-250.0,0.00032115,2]
[340180163,1728780442525,-250.0,0.00032201,2]
[340180164,1728780442547,-250.0,0.00032286,2]
[340180165,1728780442568,-420.0,0.00032332,2]
[340180166,1728780442590,-250.0,0.00032372,2]
[340180167,1728780442613,-250.0,0.00032457,2]
[340180168,1728780442634,-173.294752,0.00032518,2]
[340180169,1728780442655,-250.0,0.00032543,2]
[340180170,1728780442678,-250.0,0.00032628,2]
[340180171,1728780442699,-250.0,0.00032714,2]
[340180172,1728780442723,-250.0,0.00032799,2]
[340180173,1728780442745,-266.66595882,0.00032877,2]
[340180174,1728780442766,-420.0,0.00032999,2]
[340180175,1728780442787,-156.0,0.0003345,2]
[340180176,1728780442809,-500.0,0.00033667,5]
[340180177,1728780442830,-500.0,0.00033667,5]
[340180178,1728780442850,-500.0,0.00033667,5]
[340180179,1728780442871,-500.0,0.00033667,5]
[340180180,1728780442891,-500.0,0.0003367,5]
[340180181,1728780442912,-500.0,0.0003367,5]
[340180182,1728780442935,-500.0,0.0003379,5]
[340180183,1728780442956,-500.0,0.0003379,5]
[340180184,1728780442977,-500.0,0.0003379,5]
[340180185,1728780442998,-500.0,0.000338,5]
[340180186,1728780443020,-500.0,0.000338,5]
[340180187,1728780443040,-500.0,0.000338,5]
[340180188,1728780443060,-5586.79908946,0.00034074,2]
[340180189,1728780443083,-500.0,0.0003443,14]
[340180190,1728780443106,-9988.37863361,0.00034493,2]
[340180191,1728780443127,-173.294752,0.00034592,2]
[340180192,1728780443148,-188.0902981,0.00034593,7]
[340180193,1728780443170,-244.231,0.00034613,39]
[340180194,1728780443192,-168.259271,0.00034613,2]
[340180195,1728780443213,-587.0,0.00034847,2]